[Event "*** Titled Tuesday 3|2 Blitz (Late)"]
[Site "Chess.com"]
[Date "2017.01.03"]
[Round "5"]
[White "Ez_Chess2016"]
[Black "stalyansky"]
[Result "1-0"]
[WhiteElo "1982"]
[BlackElo "1093"]
[TimeControl "180+2"]
[EndTime "17:58:15 PST"]
[Termination "Ez_Chess2016 won on time"]

1. e4 {[%clk 0:03:01.9]} 1... e5 {[%clk 0:03:00.8]} 2. Nf3 {[%clk 0:03:02.4]}
2... Nc6 {[%clk 0:03:01.9]} 3. d4 {[%clk 0:03:02]} 3... exd4 {[%clk 0:03:02.5]}
4. Bc4 {[%clk 0:03:03.5]} 4... Bc5 {[%clk 0:03:02.8]} 5. c3 {[%clk 0:03:03.9]}
5... Nf6 {[%clk 0:03:00.2]} 6. cxd4 {[%clk 0:03:05]} 6... Bb4+ {[%clk
0:03:00.8]} 7. Bd2 {[%clk 0:03:06.6]} 7... Bxd2+ {[%clk 0:03:00.6]} 8. Nbxd2
{[%clk 0:03:07.3]} 8... d5 {[%clk 0:03:02.1]} 9. exd5 {[%clk 0:03:08.8]} 9...
Nxd5 {[%clk 0:03:02.9]} 10. Qb3 {[%clk 0:03:10.2]} 10... Nce7 {[%clk 0:02:51.4]}
11. O-O {[%clk 0:03:10.1]} 11... O-O {[%clk 0:02:51.9]} 12. Rfe1 {[%clk
0:03:09.6]} 12... c6 {[%clk 0:02:50.7]} 13. Ne4 {[%clk 0:03:08.1]} 13... Nb6
{[%clk 0:02:10.2]} 14. Nc5 {[%clk 0:02:20.5]} 14... Nxc4 {[%clk 0:01:56.4]} 15.
Qxc4 {[%clk 0:02:22.4]} 15... Nd5 {[%clk 0:01:49.5]} 16. Ne5 {[%clk 0:02:03.4]}
16... Rb8 {[%clk 0:01:10.8]} 17. a4 {[%clk 0:01:57.5]} 17... a5 {[%clk
0:01:08.4]} 18. Re3 {[%clk 0:01:02.5]} 18... Nxe3 {[%clk 0:01:04.6]} 19. fxe3
{[%clk 0:01:04.4]} 19... Qe7 {[%clk 0:00:45.1]} 20. Rf1 {[%clk 0:01:02.1]} 20...
Be6 {[%clk 0:00:27.6]} 21. Qc3 {[%clk 0:01:02.7]} 21... Ra8 {[%clk 0:00:18.6]}
22. e4 {[%clk 0:00:40.8]} 22... f6 {[%clk 0:00:17.7]} 23. Nf3 {[%clk 0:00:32.6]}
23... Bf7 {[%clk 0:00:16]} 24. e5 {[%clk 0:00:28.5]} 24... b6 {[%clk 0:00:14.7]}
25. Ne4 {[%clk 0:00:29.5]} 25... fxe5 {[%clk 0:00:13.7]} 26. Nxe5 {[%clk
0:00:17.7]} 26... Bd5 {[%clk 0:00:12.6]} 27. Nf2 {[%clk 0:00:11]} 27... Rf6
{[%clk 0:00:10.4]} 28. Re1 {[%clk 0:00:09.5]} 28... Qc7 {[%clk 0:00:08.1]} 29.
Nfg4 {[%clk 0:00:10.2]} 29... Rf4 {[%clk 0:00:06.5]} 30. Qg3 {[%clk 0:00:10.5]}
30... Raf8 {[%clk 0:00:03.3]} 31. h4 {[%clk 0:00:09.3]} 1-0

[Event "*** Titled Tuesday 3|2 Blitz (Late)"]
[Site "Chess.com"]
[Date "2017.01.03"]
[Round "5"]
[White "pedromartinez91"]
[Black "fastestmindalive"]
[Result "0-1"]
[WhiteElo "2298"]
[BlackElo "2427"]
[TimeControl "180+2"]
[EndTime "17:58:16 PST"]
[Termination "fastestmindalive won by resignation"]

1. Nf3 {[%clk 0:03:00.5]} 1... Nf6 {[%clk 0:02:58.4]} 2. g3 {[%clk 0:03:02.4]}
2... g6 {[%clk 0:02:59.2]} 3. Bg2 {[%clk 0:03:04.3]} 3... Bg7 {[%clk 0:03:00.4]}
4. O-O {[%clk 0:03:05.6]} 4... O-O {[%clk 0:03:02.1]} 5. d4 {[%clk 0:03:07.1]}
5... d6 {[%clk 0:03:03.5]} 6. c4 {[%clk 0:03:08.6]} 6... c6 {[%clk 0:03:05.4]}
7. Nc3 {[%clk 0:03:08.7]} 7... Qa5 {[%clk 0:03:06.4]} 8. e4 {[%clk 0:03:02.3]}
8... Bg4 {[%clk 0:03:07]} 9. h3 {[%clk 0:02:55.9]} 9... Bxf3 {[%clk 0:03:07.4]}
10. Bxf3 {[%clk 0:02:56.8]} 10... e5 {[%clk 0:03:08.7]} 11. d5 {[%clk 0:02:56]}
11... cxd5 {[%clk 0:03:07]} 12. Nxd5 {[%clk 0:02:49.7]} 12... Nc6 {[%clk
0:03:04.9]} 13. Be3 {[%clk 0:02:37.9]} 13... Nxd5 {[%clk 0:03:03.3]} 14. cxd5
{[%clk 0:02:27.5]} 14... Nd4 {[%clk 0:03:03.8]} 15. Bxd4 {[%clk 0:02:28.6]}
15... exd4 {[%clk 0:03:05.7]} 16. Qd3 {[%clk 0:02:30.1]} 16... Rac8 {[%clk
0:03:05]} 17. Bg4 {[%clk 0:02:26.2]} 17... Rc7 {[%clk 0:03:04.1]} 18. h4 {[%clk
0:02:24.3]} 18... h5 {[%clk 0:03:03.3]} 19. Bh3 {[%clk 0:02:24.9]} 19... a6
{[%clk 0:02:55.8]} 20. a3 {[%clk 0:02:25.5]} 20... Qb5 {[%clk 0:02:54]} 21. Qxb5
{[%clk 0:02:18.4]} 21... axb5 {[%clk 0:02:55.9]} 22. Rac1 {[%clk 0:02:19]} 22...
Re7 {[%clk 0:02:56.3]} 23. f3 {[%clk 0:02:12.6]} 23... f5 {[%clk 0:02:56.8]} 24.
exf5 {[%clk 0:02:11.8]} 24... gxf5 {[%clk 0:02:58.7]} 25. Rfe1 {[%clk
0:02:12.4]} 25... Re3 {[%clk 0:02:51.7]} 26. Rxe3 {[%clk 0:02:09.8]} 26... dxe3
{[%clk 0:02:53.5]} 27. Kf1 {[%clk 0:02:11]} 27... Bxb2 {[%clk 0:02:53.5]} 28.
Rb1 {[%clk 0:02:11.3]} 28... Bxa3 {[%clk 0:02:51]} 29. Rxb5 {[%clk 0:02:12.5]}
29... Bc5 {[%clk 0:02:44.9]} 30. Rxb7 {[%clk 0:02:13.2]} 30... f4 {[%clk
0:02:46.2]} 31. Be6+ {[%clk 0:02:13.1]} 31... Kh8 {[%clk 0:02:46.2]} 32. gxf4
{[%clk 0:01:38]} 32... Rxf4 {[%clk 0:02:48.1]} 33. Rb8+ {[%clk 0:01:33.1]} 33...
Kg7 {[%clk 0:02:47.8]} 34. Rb7+ {[%clk 0:01:32.6]} 34... Kg6 {[%clk 0:02:47.1]}
35. Ke2 {[%clk 0:01:16.9]} 35... Rxh4 {[%clk 0:02:35.7]} 36. Rb1 {[%clk
0:00:45.4]} 36... Rh2+ {[%clk 0:02:34.7]} 37. Kd3 {[%clk 0:00:45.7]} 37... Rd2+
{[%clk 0:02:35.8]} 38. Kc3 {[%clk 0:00:44.1]} 38... Kg5 {[%clk 0:02:36]} 39. Rh1
{[%clk 0:00:33.4]} 39... Rf2 {[%clk 0:02:30.7]} 40. Kd3 {[%clk 0:00:26.2]} 40...
Rxf3 {[%clk 0:02:27.5]} 41. Rg1+ {[%clk 0:00:27]} 41... Kf4 {[%clk 0:02:27.3]}
42. Rh1 {[%clk 0:00:28.1]} 42... Kg5 {[%clk 0:02:05.7]} 43. Rg1+ {[%clk
0:00:27.9]} 43... Kh6 {[%clk 0:02:06.2]} 44. Rh1 {[%clk 0:00:22.8]} 44... Rg3
{[%clk 0:01:58.6]} 45. Ke4 {[%clk 0:00:21.2]} 45... e2 {[%clk 0:01:57.7]} 46.
Re1 {[%clk 0:00:21]} 46... Re3+ {[%clk 0:01:58.1]} 47. Kf4 {[%clk 0:00:22]}
47... Kg6 {[%clk 0:01:55.6]} 48. Bf5+ {[%clk 0:00:22.2]} 48... Kf6 {[%clk
0:01:56.5]} 49. Bh3 {[%clk 0:00:23.2]} 49... Re5 {[%clk 0:01:57.1]} 50. Bg2
{[%clk 0:00:23.2]} 50... Bb4 {[%clk 0:01:57.5]} 51. Rh1 {[%clk 0:00:10.4]} 51...
e1=Q {[%clk 0:01:48.9]} 52. Rxe1 {[%clk 0:00:10.7]} 52... Bxe1 {[%clk
0:01:50.8]} 0-1

[Event "*** Titled Tuesday 3|2 Blitz (Late)"]
[Site "Chess.com"]
[Date "2017.01.03"]
[Round "5"]
[White "norwaytoadog"]
[Black "Iball95"]
[Result "0-1"]
[WhiteElo "1955"]
[BlackElo "2431"]
[TimeControl "180+2"]
[EndTime "17:58:27 PST"]
[Termination "Iball95 won on time"]

1. e4 {[%clk 0:03:02]} 1... c5 {[%clk 0:03:00.4]} 2. Nf3 {[%clk 0:03:00.9]} 2...
Nc6 {[%clk 0:03:01.8]} 3. Bb5 {[%clk 0:03:01.5]} 3... g6 {[%clk 0:03:02.1]} 4.
Bxc6 {[%clk 0:03:01.6]} 4... dxc6 {[%clk 0:03:03.2]} 5. O-O {[%clk 0:03:02.3]}
5... Bg7 {[%clk 0:03:04.7]} 6. d3 {[%clk 0:03:02.5]} 6... Nf6 {[%clk 0:03:05.5]}
7. h3 {[%clk 0:02:58.8]} 7... Nd7 {[%clk 0:03:02.7]} 8. Bf4 {[%clk 0:02:57.4]}
8... e5 {[%clk 0:03:03.5]} 9. Be3 {[%clk 0:02:53.4]} 9... Qe7 {[%clk 0:03:04.2]}
10. Nbd2 {[%clk 0:02:50.6]} 10... Nf8 {[%clk 0:03:04.4]} 11. a3 {[%clk 0:02:48]}
11... Ne6 {[%clk 0:03:01.8]} 12. Rb1 {[%clk 0:02:46.4]} 12... O-O {[%clk
0:02:56.6]} 13. b4 {[%clk 0:02:41.8]} 13... cxb4 {[%clk 0:02:58]} 14. axb4
{[%clk 0:02:38.7]} 14... f5 {[%clk 0:02:55.2]} 15. exf5 {[%clk 0:02:37]} 15...
gxf5 {[%clk 0:02:57.1]} 16. Nc4 {[%clk 0:02:33.8]} 16... f4 {[%clk 0:02:52.4]}
17. Bd2 {[%clk 0:02:28.3]} 17... Ng5 {[%clk 0:02:53.7]} 18. Re1 {[%clk
0:02:16.3]} 18... Nxh3+ {[%clk 0:02:01.5]} 19. gxh3 {[%clk 0:01:41.4]} 19...
Bxh3 {[%clk 0:02:03.4]} 20. Ncxe5 {[%clk 0:01:36.9]} 20... Qf6 {[%clk 0:01:44]}
21. Re4 {[%clk 0:01:30.9]} 21... Bh6 {[%clk 0:01:22.8]} 22. Kh2 {[%clk
0:01:10.9]} 22... Bf5 {[%clk 0:01:22.8]} 23. Rxf4 {[%clk 0:00:54.2]} 23... Bxf4+
{[%clk 0:01:23.1]} 24. Bxf4 {[%clk 0:00:54.2]} 24... Bg4 {[%clk 0:01:17.5]} 25.
Qg1 {[%clk 0:00:17.4]} 25... Qxf4+ {[%clk 0:01:17.3]} 26. Qg3 {[%clk 0:00:17.1]}
26... Qxg3+ {[%clk 0:01:16.5]} 27. Kxg3 {[%clk 0:00:18.2]} 27... Bxf3 {[%clk
0:01:17]} 28. Nxf3 {[%clk 0:00:18.9]} 28... Kh8 {[%clk 0:01:18]} 29. Nd4 {[%clk
0:00:18.4]} 29... Rf6 {[%clk 0:01:15.4]} 30. f4 {[%clk 0:00:18.7]} 30... Rg8+
{[%clk 0:01:16.6]} 31. Kf3 {[%clk 0:00:18.9]} 31... Rgf8 {[%clk 0:01:17.5]} 32.
f5 {[%clk 0:00:19.8]} 32... b6 {[%clk 0:01:18.8]} 33. Ke4 {[%clk 0:00:17.5]}
33... Re8+ {[%clk 0:01:15.3]} 34. Ne6 {[%clk 0:00:16.2]} 34... Rexe6+ {[%clk
0:01:09.5]} 35. fxe6 {[%clk 0:00:16.2]} 35... Rxe6+ {[%clk 0:01:11.4]} 36. Kf4
{[%clk 0:00:16.2]} 36... Kg7 {[%clk 0:01:11.8]} 37. Ra1 {[%clk 0:00:15.9]} 37...
Re7 {[%clk 0:01:12.9]} 38. d4 {[%clk 0:00:15.9]} 38... Kf6 {[%clk 0:01:13.7]}
39. c4 {[%clk 0:00:16.2]} 39... h5 {[%clk 0:01:14.8]} 40. Rh1 {[%clk 0:00:16.6]}
40... Rh7 {[%clk 0:01:15]} 41. d5 {[%clk 0:00:16.6]} 41... cxd5 {[%clk
0:01:14.3]} 42. cxd5 {[%clk 0:00:17.6]} 42... h4 {[%clk 0:01:15.6]} 43. Ke4
{[%clk 0:00:16.2]} 43... h3 {[%clk 0:01:15.5]} 44. b5 {[%clk 0:00:17.2]} 44...
h2 {[%clk 0:01:15.7]} 45. d6 {[%clk 0:00:14.8]} 45... Ke6 {[%clk 0:01:16.6]} 46.
d7 {[%clk 0:00:14]} 46... Kxd7 {[%clk 0:01:17.1]} 47. Kf3 {[%clk 0:00:11.5]}
47... Kd6 {[%clk 0:01:17.5]} 48. Kg2 {[%clk 0:00:11.3]} 48... Kc5 {[%clk
0:01:17.9]} 0-1

[Event "*** Titled Tuesday 3|2 Blitz (Late)"]
[Site "Chess.com"]
[Date "2017.01.03"]
[Round "5"]
[White "AungTZ"]
[Black "MrReinberg"]
[Result "0-1"]
[WhiteElo "2126"]
[BlackElo "2298"]
[TimeControl "180+2"]
[EndTime "17:58:49 PST"]
[Termination "MrReinberg won by checkmate"]

1. e4 {[%clk 0:03:02]} 1... c5 {[%clk 0:02:59.7]} 2. Nf3 {[%clk 0:03:02.6]} 2...
g6 {[%clk 0:03:00.5]} 3. c3 {[%clk 0:03:02.4]} 3... Bg7 {[%clk 0:03:00.8]} 4. d4
{[%clk 0:03:03.5]} 4... cxd4 {[%clk 0:03:02.2]} 5. cxd4 {[%clk 0:03:04.3]} 5...
d6 {[%clk 0:03:03.5]} 6. Nc3 {[%clk 0:03:04.2]} 6... Nf6 {[%clk 0:03:03.9]} 7.
Bd3 {[%clk 0:03:00]} 7... O-O {[%clk 0:03:04.3]} 8. O-O {[%clk 0:03:00.7]} 8...
Nc6 {[%clk 0:03:03.8]} 9. h3 {[%clk 0:03:01.1]} 9... h6 {[%clk 0:02:56.6]} 10.
Be3 {[%clk 0:03:01.4]} 10... e5 {[%clk 0:02:52.1]} 11. d5 {[%clk 0:03:00.5]}
11... Nb4 {[%clk 0:02:50.4]} 12. Be2 {[%clk 0:02:54.8]} 12... Na6 {[%clk
0:02:29.5]} 13. Bxa6 {[%clk 0:02:50.4]} 13... bxa6 {[%clk 0:02:31]} 14. Rc1
{[%clk 0:02:48.1]} 14... Nh5 {[%clk 0:02:25.9]} 15. Nd2 {[%clk 0:02:45.5]} 15...
Nf4 {[%clk 0:02:24.9]} 16. Nc4 {[%clk 0:02:33]} 16... f5 {[%clk 0:02:12.9]} 17.
f3 {[%clk 0:02:16.4]} 17... a5 {[%clk 0:02:03.5]} 18. Nb5 {[%clk 0:02:11.3]}
18... Rf6 {[%clk 0:02:01.3]} 19. a4 {[%clk 0:02:05.7]} 19... a6 {[%clk
0:01:52.3]} 20. Na7 {[%clk 0:01:37.4]} 20... Bd7 {[%clk 0:01:30.1]} 21. Nc6
{[%clk 0:01:31]} 21... Bxc6 {[%clk 0:01:25]} 22. dxc6 {[%clk 0:01:31.6]} 22...
Qc7 {[%clk 0:01:22.2]} 23. Nb6 {[%clk 0:01:07.5]} 23... Re8 {[%clk 0:01:00.8]}
24. Nd5 {[%clk 0:00:46.7]} 24... Nxd5 {[%clk 0:01:01.2]} 25. exd5 {[%clk
0:00:45.4]} 25... e4 {[%clk 0:00:52.6]} 26. f4 {[%clk 0:00:42.7]} 26... Rff8
{[%clk 0:00:48]} 27. Qd2 {[%clk 0:00:42.7]} 27... Rb8 {[%clk 0:00:46.5]} 28. Rc2
{[%clk 0:00:40.4]} 28... Rb4 {[%clk 0:00:42.8]} 29. Ra1 {[%clk 0:00:35.6]} 29...
Rfb8 {[%clk 0:00:43.1]} 30. Ra2 {[%clk 0:00:36.6]} 30... Bf6 {[%clk 0:00:39.8]}
31. Kh1 {[%clk 0:00:35.7]} 31... Qg7 {[%clk 0:00:37.6]} 32. Kh2 {[%clk
0:00:32.4]} 32... g5 {[%clk 0:00:37.3]} 33. g3 {[%clk 0:00:30.7]} 33... Rb3
{[%clk 0:00:36.5]} 34. Qf2 {[%clk 0:00:25.4]} 34... R3b4 {[%clk 0:00:27.4]} 35.
fxg5 {[%clk 0:00:19.5]} 35... Bxg5 {[%clk 0:00:24.9]} 36. Ba7 {[%clk 0:00:18.7]}
36... e3 {[%clk 0:00:13.7]} 37. Bxe3 {[%clk 0:00:17]} 37... f4 {[%clk
0:00:13.6]} 38. gxf4 {[%clk 0:00:16.6]} 38... Rf8 {[%clk 0:00:10.9]} 39. Qg3
{[%clk 0:00:16.2]} 39... Rbxf4 {[%clk 0:00:10.1]} 40. c7 {[%clk 0:00:16.2]}
40... Rf3 {[%clk 0:00:09]} 41. Qxf3 {[%clk 0:00:15.9]} 41... Rxf3 {[%clk
0:00:08.4]} 42. c8=Q+ {[%clk 0:00:17.8]} 42... Kh7 {[%clk 0:00:07.7]} 43. Bxg5
{[%clk 0:00:15.8]} 43... Qe5+ {[%clk 0:00:07.1]} 44. Kg2 {[%clk 0:00:15.4]}
44... Qg3+ {[%clk 0:00:07.7]} 45. Kh1 {[%clk 0:00:17.3]} 45... Rf1# {[%clk
0:00:08.7]} 0-1

[Event "*** Titled Tuesday 3|2 Blitz (Late)"]
[Site "Chess.com"]
[Date "2017.01.03"]
[Round "5"]
[White "amurdercastle"]
[Black "flubs"]
[Result "1-0"]
[WhiteElo "2342"]
[BlackElo "2229"]
[TimeControl "180+2"]
[EndTime "17:58:50 PST"]
[Termination "amurdercastle won by resignation"]

1. d4 {[%clk 0:03:02]} 1... d5 {[%clk 0:03:00]} 2. c4 {[%clk 0:02:56.4]} 2... c6
{[%clk 0:02:58.2]} 3. Nf3 {[%clk 0:02:57.5]} 3... Nf6 {[%clk 0:02:58.1]} 4. e3
{[%clk 0:02:58.3]} 4... e6 {[%clk 0:02:59.3]} 5. Nc3 {[%clk 0:02:57.9]} 5...
Nbd7 {[%clk 0:03:00.3]} 6. Qc2 {[%clk 0:02:58.1]} 6... b6 {[%clk 0:03:01.4]} 7.
Bd3 {[%clk 0:02:58.9]} 7... Bb7 {[%clk 0:03:02.2]} 8. O-O {[%clk 0:02:59.5]}
8... Be7 {[%clk 0:03:03.5]} 9. e4 {[%clk 0:03:00.1]} 9... dxe4 {[%clk
0:03:04.2]} 10. Nxe4 {[%clk 0:03:02]} 10... c5 {[%clk 0:03:04.4]} 11. Nxf6+
{[%clk 0:03:01.5]} 11... Bxf6 {[%clk 0:02:59.1]} 12. Be4 {[%clk 0:02:23.9]}
12... Bxe4 {[%clk 0:02:55.4]} 13. Qxe4 {[%clk 0:02:25.8]} 13... cxd4 {[%clk
0:02:53.4]} 14. Nxd4 {[%clk 0:02:25.8]} 14... O-O {[%clk 0:02:54.1]} 15. Be3
{[%clk 0:02:17.5]} 15... Rc8 {[%clk 0:02:46.8]} 16. Rac1 {[%clk 0:02:14.6]}
16... Nc5 {[%clk 0:02:46.7]} 17. Qg4 {[%clk 0:02:15.2]} 17... Nd3 {[%clk
0:02:42.3]} 18. Rc2 {[%clk 0:02:08.6]} 18... Ne5 {[%clk 0:02:42]} 19. Qe2 {[%clk
0:02:08.2]} 19... Qe7 {[%clk 0:02:29.8]} 20. Rfc1 {[%clk 0:02:03.7]} 20... Rfd8
{[%clk 0:02:28.7]} 21. a3 {[%clk 0:01:53.5]} 21... Nc6 {[%clk 0:02:07.1]} 22.
Nf3 {[%clk 0:01:44.9]} 22... Rd7 {[%clk 0:01:50.2]} 23. c5 {[%clk 0:01:34.2]}
23... bxc5 {[%clk 0:01:37]} 24. Rxc5 {[%clk 0:01:31.2]} 24... Rdc7 {[%clk
0:01:31.9]} 25. Qc2 {[%clk 0:01:18.8]} 25... g6 {[%clk 0:01:13.6]} 26. b4 {[%clk
0:01:15.1]} 26... a6 {[%clk 0:01:08.6]} 27. h3 {[%clk 0:01:01.9]} 27... Qe8
{[%clk 0:00:47.9]} 28. Qe4 {[%clk 0:00:46.3]} 28... Bd8 {[%clk 0:00:42.3]} 29.
Bf4 {[%clk 0:00:42.9]} 29... e5 {[%clk 0:00:42.5]} 30. Nxe5 {[%clk 0:00:25.5]}
30... Nxe5 {[%clk 0:00:39.9]} 31. Qxe5 {[%clk 0:00:23.9]} 31... Re7 {[%clk
0:00:21]} 32. Qxe7 {[%clk 0:00:19.1]} 32... Qxe7 {[%clk 0:00:19.3]} 33. Rxc8
{[%clk 0:00:21]} 33... Kg7 {[%clk 0:00:19.7]} 34. R8c5 {[%clk 0:00:19.5]} 34...
Qe2 {[%clk 0:00:14.1]} 35. Be5+ {[%clk 0:00:19.7]} 35... f6 {[%clk 0:00:14.4]}
36. Bd4 {[%clk 0:00:19.6]} 36... Qa2 {[%clk 0:00:09.4]} 37. Rc8 {[%clk
0:00:16.6]} 37... Be7 {[%clk 0:00:08.9]} 38. R1c7 {[%clk 0:00:11.9]} 38... Qxa3
{[%clk 0:00:04.4]} 39. Rxe7+ {[%clk 0:00:11.2]} 39... Kh6 {[%clk 0:00:06]} 40.
Be3+ {[%clk 0:00:12.9]} 40... g5 {[%clk 0:00:04.7]} 41. Rcc7 {[%clk 0:00:11.9]}
41... Qa1+ {[%clk 0:00:04.4]} 42. Kh2 {[%clk 0:00:11.8]} 42... Kg6 {[%clk
0:00:05.6]} 43. g4 {[%clk 0:00:11]} 43... f5 {[%clk 0:00:05.4]} 44. Re6+ {[%clk
0:00:11.9]} 1-0

[Event "*** Titled Tuesday 3|2 Blitz (Late)"]
[Site "Chess.com"]
[Date "2017.01.03"]
[Round "5"]
[White "Dr-Bassem"]
[Black "Genghis_K"]
[Result "0-1"]
[WhiteElo "2646"]
[BlackElo "2728"]
[TimeControl "180+2"]
[EndTime "17:59:13 PST"]
[Termination "Genghis_K won by resignation"]

1. Nf3 {[%clk 0:03:00]} 1... Nf6 {[%clk 0:02:50.7]} 2. g3 {[%clk 0:03:01.2]}
2... g6 {[%clk 0:02:52.2]} 3. Bg2 {[%clk 0:03:02.8]} 3... Bg7 {[%clk 0:02:53.7]}
4. O-O {[%clk 0:03:04.5]} 4... O-O {[%clk 0:02:51.3]} 5. d3 {[%clk 0:03:05.7]}
5... c5 {[%clk 0:02:51.6]} 6. e4 {[%clk 0:03:05.9]} 6... d6 {[%clk 0:02:52.4]}
7. c3 {[%clk 0:03:00.8]} 7... Nc6 {[%clk 0:02:51.4]} 8. Re1 {[%clk 0:03:01.9]}
8... e5 {[%clk 0:02:51.8]} 9. a3 {[%clk 0:03:02]} 9... b5 {[%clk 0:02:47.7]} 10.
h3 {[%clk 0:02:57.9]} 10... a5 {[%clk 0:02:48.2]} 11. a4 {[%clk 0:02:58.1]}
11... b4 {[%clk 0:02:47.8]} 12. Nbd2 {[%clk 0:02:50.8]} 12... h6 {[%clk
0:02:44.6]} 13. Nc4 {[%clk 0:02:50.3]} 13... Be6 {[%clk 0:02:44.5]} 14. Nfd2
{[%clk 0:02:45.3]} 14... Rb8 {[%clk 0:02:19.7]} 15. Ne3 {[%clk 0:02:44.2]} 15...
Re8 {[%clk 0:02:13.4]} 16. Ndc4 {[%clk 0:02:44.2]} 16... d5 {[%clk 0:02:09.2]}
17. exd5 {[%clk 0:02:41.5]} 17... Nxd5 {[%clk 0:02:11.1]} 18. Nxd5 {[%clk
0:02:34.9]} 18... Bxd5 {[%clk 0:02:12]} 19. Be3 {[%clk 0:02:33.3]} 19... Bxg2
{[%clk 0:02:08.3]} 20. Kxg2 {[%clk 0:02:35.2]} 20... Qd5+ {[%clk 0:02:09.7]} 21.
f3 {[%clk 0:02:00.9]} 21... Rbd8 {[%clk 0:02:10.5]} 22. Rc1 {[%clk 0:01:38]}
22... bxc3 {[%clk 0:02:04.2]} 23. bxc3 {[%clk 0:01:30.7]} 23... Qxd3 {[%clk
0:02:05]} 24. Qxd3 {[%clk 0:01:31.1]} 24... Rxd3 {[%clk 0:02:06.9]} 25. Bxc5
{[%clk 0:01:31.6]} 25... Rc8 {[%clk 0:01:41.9]} 26. Rc2 {[%clk 0:01:32.5]} 26...
Nb8 {[%clk 0:01:39.9]} 27. Nb2 {[%clk 0:01:10.8]} 27... Rd7 {[%clk 0:01:41]} 28.
Bb6 {[%clk 0:01:07.9]} 28... Rb7 {[%clk 0:01:39.2]} 29. Bf2 {[%clk 0:00:41.1]}
29... Rb3 {[%clk 0:01:23.4]} 30. Rd1 {[%clk 0:00:36.9]} 30... Bf8 {[%clk
0:01:02]} 31. Rd5 {[%clk 0:00:27.8]} 31... Rbxc3 {[%clk 0:01:03]} 32. Rxc3
{[%clk 0:00:27.6]} 32... Rxc3 {[%clk 0:01:04.9]} 33. Rxa5 {[%clk 0:00:28.4]}
33... Rc2 {[%clk 0:01:02]} 34. Nd3 {[%clk 0:00:29.1]} 34... Nc6 {[%clk
0:01:01.3]} 35. Ra8 {[%clk 0:00:27.9]} 35... Rd2 {[%clk 0:00:58.7]} 36. Nc5
{[%clk 0:00:21.3]} 36... Kg7 {[%clk 0:00:57]} 37. Ne4 {[%clk 0:00:20.4]} 37...
Ra2 {[%clk 0:00:54.7]} 38. Kf1 {[%clk 0:00:19.9]} 38... Bb4 {[%clk 0:00:56]} 39.
Bc5 {[%clk 0:00:19.1]} 39... Bxc5 {[%clk 0:00:54.5]} 40. Nxc5 {[%clk 0:00:21]}
40... Nd4 {[%clk 0:00:56.2]} 41. f4 {[%clk 0:00:22.2]} 41... exf4 {[%clk
0:00:43.4]} 42. gxf4 {[%clk 0:00:24.1]} 42... Ne2 {[%clk 0:00:45]} 43. Nd3
{[%clk 0:00:23]} 43... Rd2 {[%clk 0:00:45.9]} 44. h4 {[%clk 0:00:18.6]} 44...
Ng3+ {[%clk 0:00:44.3]} 45. Ke1 {[%clk 0:00:15.6]} 45... Rxd3 {[%clk 0:00:45.4]}
46. a5 {[%clk 0:00:15.6]} 46... Ra3 {[%clk 0:00:46.9]} 47. a6 {[%clk 0:00:16.8]}
47... h5 {[%clk 0:00:47.8]} 48. Kd2 {[%clk 0:00:16.5]} 48... Nf5 {[%clk
0:00:49.2]} 49. Kc2 {[%clk 0:00:17.8]} 49... Nxh4 {[%clk 0:00:50.8]} 50. Kb2
{[%clk 0:00:19.2]} 50... Ra5 {[%clk 0:00:52.4]} 51. Kb3 {[%clk 0:00:20.5]} 51...
Nf5 {[%clk 0:00:54]} 52. Kb4 {[%clk 0:00:22]} 52... Ra1 {[%clk 0:00:55.6]} 53.
Kb5 {[%clk 0:00:23.2]} 53... h4 {[%clk 0:00:57.1]} 54. a7 {[%clk 0:00:22.4]}
54... h3 {[%clk 0:00:58]} 0-1